[Event "Snabb-SM för veteraner, 50+ 2019"]
[Site "Schackcentrum, Vegagatan 20, Gothenburg, Sweden"]
[Date "2019.10.05"]
[Round "5.1"]
[White "Andreasson, Ingvar"]
[Black "Svenn, Gosta"]
[Result "0-1"]
[TimeControl "15 minutes + 10 seconds per move from move one"]
[BlackTitle "FM"]
[WhiteFideId "1700294"]
[BlackFideId "1700553"]
[WhiteElo "2413"]
[BlackElo "2272"]

1. b3 {[%clk 00:15:10]} {[%emt 00:00:09]} Nf6 {[%clk 00:15:01]} {[%emt
00:00:20]} 2. Bb2 {[%clk 00:15:14]} {[%emt 00:00:05]} e6 {[%clk 00:15:01]}
{[%emt 00:00:10]} 3. Nf3 {[%clk 00:14:55]} {[%emt 00:00:29]} c5 {[%clk
00:14:49]} {[%emt 00:00:22]} 4. e3 {[%clk 00:14:58]} {[%emt 00:00:07]} Be7
{[%clk 00:14:46]} {[%emt 00:00:13]} 5. c4 {[%clk 00:14:33]} {[%emt 00:00:35]}
O-O {[%clk 00:14:43]} {[%emt 00:00:12]} 6. Be2 {[%clk 00:14:41]} {[%emt
00:00:03]} b6 {[%clk 00:14:46]} {[%emt 00:00:07]} 7. O-O {[%clk 00:13:20]}
{[%emt 00:01:29]} Bb7 {[%clk 00:14:53]} {[%emt 00:00:04]} 8. d4 {[%clk
00:13:09]} {[%emt 00:00:21]} d6 {[%clk 00:14:28]} {[%emt 00:00:35]} 9. Nc3
{[%clk 00:13:13]} {[%emt 00:00:06]} Nbd7 {[%clk 00:14:18]} {[%emt 00:00:21]} 10.
d5 {[%clk 00:13:09]} {[%emt 00:00:13]} exd5 {[%clk 00:11:35]} {[%emt 00:02:53]}
11. cxd5 {[%clk 00:13:12]} {[%emt 00:00:07]} a6 {[%clk 00:11:43]} {[%emt
00:00:02]} 12. e4 {[%clk 00:12:10]} {[%emt 00:01:12]} b5 {[%clk 00:11:22]}
{[%emt 00:00:31]} 13. Nd2 {[%clk 00:12:13]} {[%emt 00:00:06]} Re8 {[%clk
00:10:57]} {[%emt 00:00:35]} 14. f4 {[%clk 00:09:51]} {[%emt 00:02:32]} Bf8
{[%clk 00:10:43]} {[%emt 00:00:24]} 15. Bf3 {[%clk 00:09:58]} {[%emt 00:00:03]}
Qb6 {[%clk 00:10:25]} {[%emt 00:00:29]} 16. Kh1 {[%clk 00:09:53]} {[%emt
00:00:14]} g6 {[%clk 00:09:22]} {[%emt 00:01:14]} 17. g4 {[%clk 00:08:37]}
{[%emt 00:01:25]} Re7 {[%clk 00:08:45]} {[%emt 00:00:47]} 18. g5 {[%clk
00:08:10]} {[%emt 00:00:37]} Ne8 {[%clk 00:08:53]} {[%emt 00:00:02]} 19. Qc2
{[%clk 00:06:04]} {[%emt 00:02:16]} Bg7 {[%clk 00:08:37]} {[%emt 00:00:25]} 20.
Nd1 {[%clk 00:05:57]} {[%emt 00:00:16]} Rc8 {[%clk 00:05:53]} {[%emt 00:02:55]}
21. Nf2 {[%clk 00:04:54]} {[%emt 00:01:12]} c4 {[%clk 00:05:29]} {[%emt
00:00:35]} 22. bxc4 {[%clk 00:04:03]} {[%emt 00:01:01]} Qe3 {[%clk 00:03:23]}
{[%emt 00:02:16]} 23. Bxg7 {[%clk 00:03:09]} {[%emt 00:01:05]} Nxg7 {[%clk
00:02:57]} {[%emt 00:00:36]} 24. Nh3 {[%clk 00:01:26]} {[%emt 00:01:52]} Nb6
{[%clk 00:02:52]} {[%emt 00:00:16]} 25. Bg4 {[%clk 00:00:52]} {[%emt 00:00:44]}
Rcc7 {[%clk 00:02:09]} {[%emt 00:00:53]} 26. Rae1 {[%clk 00:00:46]} {[%emt
00:00:15]} Qd4 {[%clk 00:01:53]} {[%emt 00:00:26]} 27. Nb3 {[%clk 00:00:54]}
{[%emt 00:00:03]} Qxc4 {[%clk 00:01:41]} {[%emt 00:00:22]} 28. Qf2 {[%clk
00:01:03]} Nxd5 {[%clk 00:01:29]} {[%emt 00:00:22]} 29. Na5 {[%clk 00:00:50]}
{[%emt 00:00:24]} Qd3 {[%clk 00:00:28]} {[%emt 00:01:10]} 30. Nxb7 {[%clk
00:00:53]} {[%emt 00:00:07]} Nc3 {[%clk 00:00:37]} {[%emt 00:00:01]} 31. Rd1
{[%clk 00:00:21]} {[%emt 00:00:42]} Nxd1 {[%clk 00:00:40]} {[%emt 00:00:06]} 32.
Rxd1 {[%clk 00:00:31]} Qxe4+ {[%emt 00:00:07]} 33. Bf3 Qf5 {[%clk 00:00:36]}
{[%emt 00:00:17]} 34. Qg2 {[%clk 00:00:34]} {[%emt 00:00:16]} Rc2 {[%clk
00:00:33]} {[%emt 00:00:13]} 35. Nxd6 {[%clk 00:00:35]} {[%emt 00:00:10]} Qc5
{[%clk 00:00:27]} {[%emt 00:00:16]} 36. Qg1 {[%clk 00:00:35]} {[%emt 00:00:10]}
Qc3 {[%clk 00:00:28]} {[%emt 00:00:09]} 37. Qg4 {[%clk 00:00:35]} {[%emt
00:00:10]} Nh5 {[%clk 00:00:29]} {[%emt 00:00:09]} 38. f5 {[%clk 00:00:37]}
{[%emt 00:00:08]} Re1+ {[%clk 00:00:32]} {[%emt 00:00:05]} 39. Ng1 {[%clk
00:00:36]} {[%emt 00:00:11]} Rxd1 {[%clk 00:00:34]} {[%emt 00:00:08]} 40. Bxd1
{[%clk 00:00:45]} {[%emt 00:00:01]} Qc6+ {[%clk 00:00:19]} {[%emt 00:00:25]} 41.
Qe4 {[%clk 00:00:28]} {[%emt 00:00:27]} Qxe4+ {[%clk 00:00:17]} {[%emt
00:00:12]} 42. Nxe4 {[%clk 00:00:36]} Rxa2 {[%clk 00:00:24]} {[%emt 00:00:03]}
43. Bb3 {[%clk 00:00:36]} {[%emt 00:00:10]} Rb2 {[%clk 00:00:32]} {[%emt
00:00:03]} 44. Nc5 {[%clk 00:00:37]} {[%emt 00:00:10]} a5 {[%clk 00:00:33]}
{[%emt 00:00:09]} 45. Nf3 {[%clk 00:00:32]} {[%emt 00:00:14]} a4 {[%clk
00:00:43]} {[%emt 00:00:03]} 46. Bd5 {[%clk 00:00:38]} {[%emt 00:00:02]} Nf4
{[%clk 00:00:51]} {[%emt 00:00:01]} 47. Bc6 {[%clk 00:00:44]} {[%emt 00:00:04]}
a3 {[%clk 00:00:59]} {[%emt 00:00:03]} 0-1

[Event "Snabb-SM för veteraner, 50+ 2019"]
[Site "Schackcentrum, Vegagatan 20, Gothenburg, Sweden"]
[Date "2019.10.05"]
[Round "5.2"]
[White "Andersson, Johan"]
[Black "Borvander, Tom"]
[Result "0-1"]
[TimeControl "15 minutes + 10 seconds per move from move one"]
[WhiteFideId "1703935"]
[BlackFideId "1707388"]
[WhiteElo "2152"]
[BlackElo "2066"]

1. e4 {[%clk 00:15:17]} {[%emt 00:00:03]} e5 {[%clk 00:15:17]} {[%emt
00:00:04]} 2. Nf3 {[%clk 00:15:25]} {[%emt 00:00:02]} Nc6 {[%clk 00:15:23]}
{[%emt 00:00:04]} 3. c3 {[%clk 00:15:33]} {[%emt 00:00:01]} d5 {[%clk
00:15:28]} {[%emt 00:00:06]} 4. Qa4 {[%clk 00:15:40]} {[%emt 00:00:03]} f6
{[%clk 00:15:34]} {[%emt 00:00:04]} 5. Bb5 {[%clk 00:15:48]} {[%emt 00:00:02]}
Nge7 {[%clk 00:15:42]} {[%emt 00:00:03]} 6. exd5 {[%clk 00:15:55]} {[%emt
00:00:02]} Qxd5 {[%clk 00:15:48]} {[%emt 00:00:03]} 7. d4 {[%clk 00:16:02]}
{[%emt 00:00:03]} Bd7 {[%clk 00:12:39]} {[%emt 00:03:18]} 8. Be3 {[%clk
00:15:21]} {[%emt 00:00:51]} e4 {[%clk 00:08:55]} {[%emt 00:03:56]} 9. c4
{[%clk 00:14:50]} {[%emt 00:00:41]} Qf5 {[%clk 00:08:43]} {[%emt 00:00:21]} 10.
Nfd2 {[%clk 00:13:36]} {[%emt 00:01:24]} Qg6 {[%clk 00:07:29]} {[%emt
00:01:24]} 11. Nc3 {[%clk 00:13:12]} {[%emt 00:00:34]} a6 {[%clk 00:06:38]}
{[%emt 00:01:01]} 12. d5 {[%clk 00:11:52]} {[%emt 00:01:30]} Ne5 {[%clk
00:06:33]} {[%emt 00:00:16]} 13. Bxd7+ {[%clk 00:11:53]} {[%emt 00:00:09]} Nxd7
{[%clk 00:06:42]} {[%emt 00:00:01]} 14. Ndxe4 {[%clk 00:10:52]} {[%emt
00:01:11]} Nf5 {[%clk 00:06:10]} {[%emt 00:00:42]} 15. O-O-O {[%clk 00:09:42]}
{[%emt 00:01:19]} Nxe3 {[%clk 00:06:17]} {[%emt 00:00:03]} 16. Rhe1 {[%clk
00:07:35]} {[%emt 00:02:17]} O-O-O {[%clk 00:05:56]} {[%emt 00:00:31]} 17. Rxe3
{[%clk 00:07:07]} {[%emt 00:00:37]} f5 {[%clk 00:06:00]} {[%emt 00:00:08]} 18.
Rg3 {[%clk 00:06:52]} {[%emt 00:00:22]} Qh6+ {[%clk 00:06:00]} {[%emt
00:00:12]} 19. Ng5 {[%clk 00:06:05]} {[%emt 00:00:58]} Bd6 {[%clk 00:05:54]}
{[%emt 00:00:16]} 20. h4 {[%clk 00:05:18]} {[%emt 00:00:57]} Bxg3 {[%clk
00:03:23]} {[%emt 00:02:41]} 21. fxg3 {[%clk 00:05:23]} {[%emt 00:00:05]} Rde8
{[%clk 00:01:57]} {[%emt 00:01:37]} 22. Kb1 {[%clk 00:05:03]} {[%emt 00:00:30]}
Nc5 {[%clk 00:01:55]} {[%emt 00:00:12]} 23. Qc2 {[%clk 00:04:54]} {[%emt
00:00:18]} Qf6 {[%clk 00:01:38]} {[%emt 00:00:27]} 24. Rf1 {[%clk 00:03:35]}
{[%emt 00:01:28]} g6 {[%clk 00:01:47]} {[%emt 00:00:02]} 25. b4 {[%clk
00:02:55]} {[%emt 00:00:50]} Nd7 {[%clk 00:01:53]} {[%emt 00:00:04]} 26. g4
{[%clk 00:02:48]} {[%emt 00:00:17]} Ne5 {[%clk 00:01:44]} {[%emt 00:00:19]} 27.
gxf5 {[%clk 00:02:09]} {[%emt 00:00:49]} Nxc4 {[%clk 00:01:52]} {[%emt
00:00:02]} 28. Qd3 {[%clk 00:01:48]} {[%emt 00:00:29]} Ne3 {[%clk 00:01:52]}
{[%emt 00:00:12]} 29. Rf3 {[%clk 00:01:43]} {[%emt 00:00:14]} Nxg2 {[%clk
00:00:54]} {[%emt 00:01:08]} 30. fxg6 {[%clk 00:01:43]} {[%emt 00:00:11]} Qxg6
{[%clk 00:01:02]} {[%emt 00:00:02]} 31. Qxg6 {[%clk 00:00:32]} {[%emt
00:01:20]} hxg6 {[%clk 00:01:12]} 32. Ne6 {[%clk 00:00:37]} {[%emt 00:00:04]}
Re7 {[%clk 00:01:13]} {[%emt 00:00:09]} 33. Ne4 {[%clk 00:00:23]} {[%emt
00:00:24]} b6 {[%clk 00:01:18]} {[%emt 00:00:05]} 34. Rf6 {[%clk 00:00:21]}
{[%emt 00:00:11]} Nxh4 {[%clk 00:01:18]} {[%emt 00:00:11]} 35. d6 {[%clk
00:00:27]} {[%emt 00:00:05]} cxd6 {[%clk 00:01:14]} {[%emt 00:00:15]} 36. Nxd6+
{[%clk 00:00:35]} Kd7 {[%clk 00:01:19]} {[%emt 00:00:04]} 37. Nf4 {[%clk
00:00:29]} {[%emt 00:00:16]} Nf5 {[%clk 00:01:25]} {[%emt 00:00:05]} 38. Nxf5
{[%clk 00:00:33]} {[%emt 00:00:05]} gxf5 {[%clk 00:01:34]} {[%emt 00:00:02]} 39.
Rxb6 {[%clk 00:00:40]} {[%emt 00:00:03]} Rh2 {[%clk 00:01:28]} {[%emt
00:00:16]} 40. Nd3 {[%clk 00:00:22]} {[%emt 00:00:27]} Re3 {[%clk 00:01:27]}
{[%emt 00:00:11]} 41. Nc5+ {[%clk 00:00:22]} {[%emt 00:00:11]} Ke7 {[%clk
00:01:34]} {[%emt 00:00:03]} 42. Rb7+ {[%clk 00:00:19]} {[%emt 00:00:13]} Ke8
{[%clk 00:01:28]} {[%emt 00:00:11]} 43. Rb8+ {[%clk 00:00:15]} {[%emt
00:00:18]} Kf7 {[%clk 00:01:35]} {[%emt 00:00:02]} 44. Nb3 {[%clk 00:00:22]}
{[%emt 00:00:04]} Ree2 {[%clk 00:01:35]} {[%emt 00:00:11]} 45. Rb7+ {[%clk
00:00:29]} {[%emt 00:00:03]} Kg6 {[%clk 00:01:35]} {[%emt 00:00:09]} 46. Rb6+
{[%clk 00:00:37]} {[%emt 00:00:03]} Kg5 {[%clk 00:01:43]} 47. Rxa6 {[%clk
00:00:46]} {[%emt 00:00:02]} f4 {[%clk 00:01:47]} {[%emt 00:00:06]} 48. Ra8
{[%clk 00:00:47]} {[%emt 00:00:09]} Rh1+ {[%clk 00:01:40]} {[%emt 00:00:16]} 49.
Nc1 {[%clk 00:00:55]} {[%emt 00:00:02]} Ree1 {[%clk 00:01:48]} {[%emt
00:00:02]} 50. Rc8 {[%clk 00:00:53]} {[%emt 00:00:12]} f3 {[%clk 00:01:56]}
{[%emt 00:00:02]} 51. Kb2 {[%clk 00:00:53]} {[%emt 00:00:09]} Rxc1 {[%clk
00:02:02]} {[%emt 00:00:05]} 52. Rg8+ {[%clk 00:00:54]} {[%emt 00:00:09]} Kf4
{[%clk 00:02:10]} {[%emt 00:00:01]} 53. a4 {[%clk 00:00:55]} {[%emt 00:00:09]}
Rb1+ {[%clk 00:02:12]} {[%emt 00:00:08]} 54. Kc3 {[%clk 00:01:04]} Rhc1+ {[%clk
00:02:20]} {[%emt 00:00:03]} 55. Kd2 {[%clk 00:01:13]} {[%emt 00:00:01]} Rc4
{[%clk 00:02:17]} {[%emt 00:00:12]} 0-1

[Event "Snabb-SM för veteraner, 50+ 2019"]
[Site "Schackcentrum, Vegagatan 20, Gothenburg, Sweden"]
[Date "2019.10.05"]
[Round "5.3"]
[White "Angskog, Kent"]
[Black "Eriksson, Kristian"]
[Result "1/2-1/2"]
[TimeControl "15 minutes + 10 seconds per move from move one"]
[WhiteFideId "1703668"]
[BlackFideId "1705172"]
[WhiteElo "2136"]
[BlackElo "2025"]

1. Nf3 {[%clk 00:15:13]} {[%emt 00:00:06]} e6 {[%clk 00:15:12]} {[%emt
00:00:09]} 2. c4 {[%clk 00:15:12]} {[%emt 00:00:11]} f5 {[%clk 00:15:11]}
{[%emt 00:00:10]} 3. g3 {[%clk 00:15:07]} {[%emt 00:00:16]} Nf6 {[%clk
00:15:17]} {[%emt 00:00:03]} 4. Bg2 {[%clk 00:15:15]} {[%emt 00:00:03]} Be7
{[%clk 00:15:24]} {[%emt 00:00:03]} 5. O-O {[%clk 00:15:21]} {[%emt 00:00:04]}
O-O {[%clk 00:15:30]} {[%emt 00:00:04]} 6. d3 {[%clk 00:15:20]} {[%emt
00:00:11]} d6 {[%clk 00:15:02]} {[%emt 00:00:38]} 7. Nc3 {[%clk 00:15:20]}
{[%emt 00:00:09]} Nc6 {[%clk 00:14:18]} {[%emt 00:00:55]} 8. Rb1 {[%clk
00:14:59]} {[%emt 00:00:32]} e5 {[%clk 00:14:01]} {[%emt 00:00:26]} 9. b4
{[%clk 00:14:08]} {[%emt 00:01:01]} Qe8 {[%clk 00:14:04]} {[%emt 00:00:08]} 10.
b5 {[%clk 00:12:43]} {[%emt 00:01:35]} Nd8 {[%clk 00:13:53]} {[%emt 00:00:20]}
11. Nd5 {[%clk 00:10:53]} {[%emt 00:01:59]} Ne6 {[%clk 00:12:42]} {[%emt
00:01:22]} 12. Nxf6+ {[%clk 00:04:34]} {[%emt 00:06:29]} Bxf6 {[%clk 00:12:11]}
{[%emt 00:00:41]} 13. e3 {[%clk 00:04:02]} {[%emt 00:00:43]} Qg6 {[%clk
00:09:39]} {[%emt 00:02:42]} 14. d4 {[%clk 00:03:43]} {[%emt 00:00:28]} f4
{[%clk 00:09:02]} {[%emt 00:00:47]} 15. dxe5 {[%clk 00:03:18]} {[%emt
00:00:36]} Qxb1 {[%clk 00:08:47]} {[%emt 00:00:24]} 16. exf6 {[%clk 00:03:25]}
{[%emt 00:00:02]} Rxf6 {[%clk 00:07:40]} {[%emt 00:01:17]} 17. exf4 {[%clk
00:03:26]} {[%emt 00:00:09]} Nc5 {[%clk 00:06:25]} {[%emt 00:01:26]} 18. Ng5
{[%clk 00:03:13]} {[%emt 00:00:22]} h6 {[%clk 00:05:04]} {[%emt 00:01:31]} 19.
Qd5+ {[%clk 00:02:47]} {[%emt 00:00:35]} Kh8 {[%clk 00:03:59]} {[%emt
00:01:17]} 20. Ne4 {[%clk 00:00:46]} {[%emt 00:02:10]} Rf5 {[%clk 00:03:35]}
{[%emt 00:00:35]} 21. Qd4 {[%clk 00:00:47]} {[%emt 00:00:08]} Qd3 {[%clk
00:03:28]} {[%emt 00:00:17]} 22. Bb2 {[%clk 00:00:51]} {[%emt 00:00:06]} Qxd4
{[%clk 00:03:30]} {[%emt 00:00:09]} 23. Bxd4 {[%clk 00:00:58]} {[%emt
00:00:02]} Be6 {[%clk 00:02:53]} {[%emt 00:00:47]} 24. Rc1 {[%clk 00:00:33]}
{[%emt 00:00:35]} Re8 {[%clk 00:02:36]} {[%emt 00:00:28]} 25. Nd2 {[%clk
00:00:38]} {[%emt 00:00:04]} b6 {[%clk 00:02:30]} {[%emt 00:00:17]} 26. Bc6
{[%clk 00:00:44]} {[%emt 00:00:04]} Bd7 {[%clk 00:02:07]} {[%emt 00:00:33]} 27.
Bf3 {[%clk 00:00:44]} {[%emt 00:00:10]} Rff8 {[%clk 00:01:59]} {[%emt
00:00:18]} 28. Bh5 {[%clk 00:00:35]} {[%emt 00:00:18]} Re7 {[%clk 00:02:01]}
{[%emt 00:00:08]} 29. Nf3 {[%clk 00:00:39]} {[%emt 00:00:06]} Be8 {[%clk
00:02:01]} {[%emt 00:00:10]} 30. Bg4 {[%clk 00:00:38]} {[%emt 00:00:10]} Bg6
{[%clk 00:01:49]} {[%emt 00:00:22]} 31. Nh4 {[%clk 00:00:41]} {[%emt 00:00:07]}
Bh7 {[%clk 00:01:38]} {[%emt 00:00:22]} 32. f5 {[%clk 00:00:40]} {[%emt
00:00:11]} Re4 {[%clk 00:01:28]} {[%emt 00:00:20]} 33. Bxc5 {[%clk 00:00:32]}
{[%emt 00:00:16]} Rxg4 {[%emt 00:00:04]} 34. Be3 {[%clk 00:00:36]} {[%emt
00:00:05]} Bxf5 {[%clk 00:01:12]} {[%emt 00:00:34]} 35. Nxf5 {[%clk 00:00:44]}
{[%emt 00:00:02]} Rxf5 {[%clk 00:01:21]} {[%emt 00:00:01]} 36. Rc3 {[%clk
00:00:51]} {[%emt 00:00:03]} Re4 {[%clk 00:01:08]} {[%emt 00:00:22]} 37. Kg2
{[%clk 00:00:52]} {[%emt 00:00:09]} Kg8 {[%clk 00:01:15]} {[%emt 00:00:04]} 38.
h3 {[%clk 00:00:55]} {[%emt 00:00:07]} Kf7 {[%clk 00:01:08]} {[%emt 00:00:18]}
39. g4 {[%clk 00:00:53]} {[%emt 00:00:11]} Rfe5 {[%clk 00:01:11]} {[%emt
00:00:07]} 40. Kf3 {[%clk 00:00:52]} {[%emt 00:00:11]} g5 {[%clk 00:01:06]}
{[%emt 00:00:15]} 41. Ke2 {[%clk 00:00:36]} {[%emt 00:00:26]} Kg6 {[%clk
00:00:55]} {[%emt 00:00:22]} 42. Kd3 {[%clk 00:00:40]} {[%emt 00:00:05]} Re8
{[%clk 00:00:59]} {[%emt 00:00:06]} 43. Ra3 {[%clk 00:00:45]} {[%emt 00:00:06]}
R4e7 {[%clk 00:00:33]} {[%emt 00:00:35]} 44. Rxa7 {[%clk 00:00:50]} {[%emt
00:00:04]} Kf6 {[%clk 00:00:26]} {[%emt 00:00:18]} 45. a4 {[%clk 00:00:52]}
{[%emt 00:00:07]} Ke5 {[%clk 00:00:26]} {[%emt 00:00:09]} 46. Ke4+ {[%emt
00:00:10]} 1/2-1/2

[Event "Snabb-SM för veteraner, 50+ 2019"]
[Site "Schackcentrum, Vegagatan 20, Gothenburg, Sweden"]
[Date "2019.10.05"]
[Round "5.4"]
[White "Sigeman, Johan"]
[Black "Svenn, Matti"]
[Result "1/2-1/2"]
[TimeControl "15 minutes + 10 seconds per move from move one"]
[WhiteFideId "1705601"]
[BlackFideId "1705091"]
[WhiteElo "2100"]
[BlackElo "2195"]

1. c4 {[%clk 00:15:16]} {[%emt 00:00:03]} e5 {[%clk 00:15:18]} {[%emt
00:00:02]} 2. Nc3 {[%clk 00:15:24]} {[%emt 00:00:02]} Nf6 {[%clk 00:15:25]}
{[%emt 00:00:03]} 3. Nf3 {[%clk 00:15:32]} {[%emt 00:00:01]} Nc6 {[%clk
00:15:34]} {[%emt 00:00:02]} 4. e3 {[%clk 00:15:40]} {[%emt 00:00:02]} Bb4
{[%clk 00:15:36]} {[%emt 00:00:07]} 5. Qc2 {[%clk 00:15:11]} {[%emt 00:00:40]}
O-O {[%clk 00:15:44]} {[%emt 00:00:02]} 6. Nd5 {[%clk 00:15:15]} {[%emt
00:00:05]} Bc5 {[%clk 00:15:31]} {[%emt 00:00:23]} 7. Qf5 {[%clk 00:14:50]}
{[%emt 00:00:35]} d6 {[%clk 00:14:31]} {[%emt 00:01:10]} 8. Nxf6+ {[%clk
00:14:53]} {[%emt 00:00:07]} Qxf6 {[%clk 00:14:40]} {[%emt 00:00:01]} 9. Qxf6
{[%clk 00:15:01]} {[%emt 00:00:02]} gxf6 {[%clk 00:14:48]} 10. a3 {[%clk
00:14:59]} {[%emt 00:00:13]} a5 {[%clk 00:14:57]} {[%emt 00:00:01]} 11. b3
{[%clk 00:14:29]} {[%emt 00:00:40]} Be6 {[%clk 00:14:49]} {[%emt 00:00:17]} 12.
Bb2 {[%clk 00:14:26]} {[%emt 00:00:14]} d5 {[%clk 00:14:57]} {[%emt 00:00:02]}
13. d4 {[%clk 00:13:08]} {[%emt 00:01:27]} exd4 {[%clk 00:13:56]} {[%emt
00:01:11]} 14. exd4 {[%clk 00:12:13]} {[%emt 00:01:06]} Bd6 {[%clk 00:14:04]}
{[%emt 00:00:02]} 15. c5 {[%clk 00:11:32]} {[%emt 00:00:51]} Bf4 {[%clk
00:14:12]} {[%emt 00:00:01]} 16. Be2 {[%clk 00:09:07]} {[%emt 00:02:36]} Rfe8
{[%clk 00:14:07]} {[%emt 00:00:15]} 17. O-O {[%clk 00:09:08]} {[%emt 00:00:09]}
Bf5 {[%clk 00:13:46]} {[%emt 00:00:32]} 18. Rfe1 {[%clk 00:08:05]} {[%emt
00:01:13]} Re6 {[%clk 00:12:18]} {[%emt 00:01:37]} 19. Nh4 {[%clk 00:06:36]}
{[%emt 00:01:39]} Bg6 {[%clk 00:10:04]} {[%emt 00:02:24]} 20. Bg4 {[%clk
00:06:01]} {[%emt 00:00:45]} Rxe1+ {[%clk 00:09:22]} {[%emt 00:00:51]} 21. Rxe1
{[%clk 00:06:10]} {[%emt 00:00:02]} Kf8 {[%clk 00:09:31]} 22. g3 {[%clk
00:05:41]} {[%emt 00:00:40]} Bg5 {[%clk 00:07:38]} {[%emt 00:02:02]} 23. Nf5
{[%clk 00:05:17]} {[%emt 00:00:33]} 1/2-1/2